Cogmind - Beta 9.3 @@@ ROGUE MODE // 2020.01.01 @ 18:45:58 Player: Horse Result: Destroyed by S-10 Pest with Light Assault Rifle Performance ------------- Evolutions (0) 0 Regions Visited (2) 400 Robots Destroyed (26) 130 Value Destroyed (576) 576 Prototype IDs (5) 100 Alien Tech Used (0) 0 Bonus (0) 0 TOTAL SCORE: 1206 Bonus ------- None Cogmind --------- Core Integrity 0/250 Matter 268/300 Energy 265/265 System Corruption 0% Temperature Cool (0) Movement Treading (180) Ox1 Location -10/Mines Parts ------- > --- POWER (1) -------- Improved Ion Engine > --- PROPULSION (2) --- Light Treads Light Treads > --- UTILITY (2) ------ High-capacity Storage Unit High-capacity Storage Unit > --- WEAPON (2) ------- Heavy Assault Rifle Mini Grenade Launcher > --- INVENTORY (20) --- Light Treads Improved Heat Sink High-capacity Storage Unit High-capacity Matter Pod (200) Signal Interpreter Signal Interpreter Transport Network Coupler Core Shielding Weapon Shielding Light Armor Plating Light Armor Plating Heavy Assault Rifle Heavy Assault Rifle Heavy Assault Rifle Heavy Assault Rifle Heavy Assault Rifle Mining Laser Peak State ------------ > --- POWER ------------ Light Nuclear Core > --- PROPULSION ------- Compact Wheel Compact Wheel > --- UTILITY ---------- High-capacity Storage Unit Targeting Computer > --- WEAPON ----------- Heavy Assault Rifle Heavy Assault Rifle > --- INVENTORY -------- Improved Heat Sink Medium Storage Unit High-capacity Storage Unit High-capacity Storage Unit High-capacity Matter Pod Signal Interpreter Signal Interpreter Transport Network Coupler Small Laser Shotgun Mini Grenade Launcher Mining Laser [Rating: 12] Favorites ----------- Power Light Nuclear Core Engine Light Ion Engine Power Core Light Nuclear Core Propulsion Compact Wheel Treads Light Treads Leg Aluminum Leg Wheel Compact Wheel Utility High-capacity Storage Unit Storage High-capacity Storage Unit Processor Targeting Computer Weapon Heavy Assault Rifle Energy Gun Medium Laser Ballistic Gun Heavy Assault Rifle Launcher Mini Grenade Launcher Build | -11 -10 -10 ------- Run | Scr Mat Min Slots Evolved . | . . . Power . | . . . Propulsion . | . . . Utility . | . . . Weapon . | . . . Parts Attached 25 | 5 13 7 Power 4 | 1 1 2 Engine 2 | 1 . 1 Core 2 | . 1 1 Reactor . | . . . Propulsion 8 | 2 3 3 Treads 2 | . . 2 Leg 3 | 2 1 . Wheel 3 | . 2 1 Hover . | . . . Flight . | . . . Utility 6 | . 5 1 Device . | . . . Storage 5 | . 4 1 Processor 1 | . 1 . Hackware . | . . . Protection . | . . . Artifact . | . . . Weapon 7 | 2 4 1 Energy Gun 2 | 1 1 . Energy Cannon . | . . . Ballistic Gun 4 | 1 3 . Ballistic Cannon . | . . . Launcher 1 | . . 1 Special Weapon . | . . . Impact Weapon . | . . . Slashing Weapon . | . . . Piercing Weapon . | . . . Special Melee Weapon . | . . . Unidentified Prototypes . | . . . Parts Lost 7 | . 4 3 Power 3 | . 1 2 Propulsion 2 | . 2 . Utility 1 | . . 1 Weapon 1 | . 1 . Highest Loss Streak 3 | . 3 2 Average Slot Usage (%) 89 | . 93 81 Engine 2 | . 3 1 Core 8 | . 10 4 Treads 1 | . . 4 Leg 8 | . 13 . Wheel 17 | . 13 23 Storage 14 | . 13 16 Processor 8 | . 12 . Energy Gun 8 | . 12 . Ballistic Gun 18 | . 12 27 Naked Turns . | . . . Heaviest Build 77 | 7 43 77 Greatest Support 40 | 20 32 40 Greatest Overweight (x) 3 | . 2 3 Average Overweight (x) . | . 1 1 Largest Inventory Capacity 20 | 4 12 20 Average Capacity 11 | 4 10 13 Most Carried 17 | 1 12 17 Average Carried 9 | . 8 12 Final Capacity 20 | 4 12 20 Final Carried 17 | 1 12 17 Class Distribution -------------------- 93% | Mutant 6% | Hauler-Mutant Dominant Class ---------------- Mutant | -10/Materials Mutant | -10/Mines Resources | -11 -10 -10 ----------- Run | Scr Mat Min Matter Collected 926 | 283 198 445 Remotely . | . . . Salvage Created 860 | 80 329 451 Parts 64 | 8 21 35 Haulers Intercepted 2 | . 2 . Recyclers Shooed 1 | . . 1 Parts Field Recycled . | . . . Retrieved Matter . | . . . Parts Self-Destructed . | . . . Prevented . | . . . Kills | -11 -10 -10 ------- Run | Scr Mat Min Combat Hostiles Destroyed 17 | . 5 12 Guns 15 | . 5 10 AOE 2 | . . 2 Classes Destroyed 8 | 2 5 1 Worker 2 | . 1 1 Tunneler 2 | 2 . . Hauler 2 | . 2 . Recycler 1 | 1 . . Watcher 2 | . 2 . Swarmer 6 | . 2 4 Grunt 9 | . 3 6 Sentry 2 | . . 2 Best Kill Streak 4 | 3 3 4 Combat Bots Only 4 | . 2 4 Max Kills in Single Turn 2 | 1 1 2 Gunslinging 1 | . . 1 Exploded 2 | . . 2 Melee . | . . . Uniques/NPCs Destroyed . | . . . Combat | -11 -10 -10 -------- Run | Scr Mat Min Damage Taken 1034 | . 590 444 Core 258 | . 94 164 Absorbed by Shields . | . . . Core Remaining (%) 100 | 100 . . Volleys Fired 92 | 11 48 33 Largest 2 | 2 2 2 Hottest 90 | 70 90 53 Shots Fired 172 | 22 85 65 Gun 171 | 22 85 64 Cannon . | . . . Launcher 1 | . . 1 Special . | . . . Kinetic 111 | 11 36 64 Thermal 60 | 11 49 . Explosive 1 | . . 1 Electromagnetic . | . . . Robot Hit Streak 12 | 8 10 12 Robot Miss Streak 3 | 3 2 3 Penetration Max . | . . . Secondary Targets 3 | . . 3 Max Gunslinging Chain 1 | . . 1 Shots Hit Robots 120 | 15 64 41 Core Hits 43 | 4 18 21 Critical Hits 1 | . . 1 Critical Kills . | . . . Critical Parts Destroyed 1 | . . 1 Melee Attacks . | . . . Impact . | . . . Slashing . | . . . Piercing . | . . . Sneak Attacks . | . . . Combat Hostiles . | . . . Follow-up Attacks . | . . . Damage Inflicted 1636 | 213 741 682 Guns 1540 | 213 741 586 Cannons . | . . . Explosions 96 | . . 96 Melee . | . . . Ramming . | . . . Kinetic 1031 | 127 318 586 Thermal 509 | 86 423 . Explosive 96 | . . 96 Electromagnetic . | . . . Impact . | . . . Slashing . | . . . Piercing . | . . . Highest Corruption . | . . . Average Corruption . | . . . Corruption Purged . | . . . Overload Shots . | . . . Overflow Damage . | . . . Projectiles . | . . . Explosions . | . . . Melee . | . . . Knockbacks . | . . . Impact . | . . . Kinetic . | . . . Secondary . | . . . Self-Inflicted Damage . | . . . Shots . | . . . Rammed . | . . . Targets Rammed . | . . . Kicked . | . . . Crushed . | . . . Highest Temperature 297 | 99 297 6 Average Temperature 76 | 50 87 3 Received Heat Transfer 447 | . 282 165 Siege Activations . | . . . Robots Corrupted . | . . . Combat Hostiles . | . . . Parts Fried . | . . . Impact Corruptions . | . . . Robots Melted . | . . . Combat Hostiles . | . . . Parts Melted 2 | . 2 . Heat Transferred 1505 | 259 1246 . Parts Sabotaged . | . . . Parts Stolen . | . . . Parts Stripped . | . . . Power Chain Reactions . | . . . Missiles Intercepted . | . . . Alert | -11 -10 -10 ------- Run | Scr Mat Min Peak Influence 190 | 15 143 190 Average Influence 59 | 3 49 87 Maximum Alert Level . | . . . Low Security (%) 100 | 100 100 100 Level 1 . | . . . Level 2 . | . . . Level 3 . | . . . Level 4 . | . . . Level 5 . | . . . High Security . | . . . Max Security . | . . . Squads Dispatched . | . . . Investigation . | . . . Extermination . | . . . Reinforcement . | . . . Assault . | . . . Garrison . | . . . Intercept . | . . . Construction Impeded . | . . . Haulers Reinforced . | . . . Stealth | -11 -10 -10 --------- Run | Scr Mat Min Distress Signals 1 | . . 1 Communications Jammed . | . . . Distress Signals . | . . . Times Spotted 29 | . 15 14 Peak Tracking Total 4 | . 4 3 Tactical Retreats 3 | . 2 1 Traps | -11 -10 -10 ------- Run | Scr Mat Min Traps Triggered 1 | . 1 . Indirectly . | . . . Trap Hack Attempts . | . . . Triggered . | . . . Disarmed . | . . . Reprogrammed . | . . . Reused . | . . . Traps Extracted . | . . . Installed . | . . . Triggered . | . . . Machines | -11 -10 -10 ---------- Run | Scr Mat Min Machines Disabled 1 | . . 1 Max in Single Turn 1 | . . 1 Machines Sabotaged . | . . . Garrisons Compromised . | . . . Overloaded Fab Kills . | . . . Fab Network Shutdowns . | . . . Hacking | -11 -10 -10 --------- Run | Scr Mat Min Machines Accessed 8 | . 8 . Terminals 6 | . 6 . Fabricators . | . . . Repair Stations . | . . . Recycling Units 2 | . 2 . Scanalyzers . | . . . Garrison Access . | . . . Total Hacks 34 | . 34 . Successful 25 | . 25 . Failed 9 | . 9 . Catastrophic 1 | . 1 . Database Lockouts . | . . . Manual 19 | . 19 . Terminals 24 | . 24 . Fabricators . | . . . Repair Stations . | . . . Recycling Units 10 | . 10 . Scanalyzers . | . . . Garrison Access . | . . . Terminal Hacks 11 | . 11 . Robot Schematic 1 | . 1 . Robot Analysis 2 | . 2 . Prototype ID Bank 3 | . 3 . Alert Level 1 | . 1 . Unreport Threat 1 | . 1 . Locate Traps 2 | . 2 . Hauler Manifests 1 | . 1 . Fabricator Hacks . | . . . Repair Station Hacks . | . . . Recycling Unit Hacks 2 | . 2 . Retrieve Components 2 | . 2 . Scanalyzer . | . . . Garrison Access Hacks . | . . . Unauthorized Hacks 26 | . 26 . Terminals 5 | . 5 . Track 1 | . 1 . Botnet 3 | . 3 . Disrupt 1 | . 1 . Fabricators . | . . . Repair Stations . | . . . Recycling Units 7 | . 7 . Monitor 2 | . 2 . Reject 1 | . 1 . Recyclers 2 | . 2 . Mask 2 | . 2 . Scanalyzers . | . . . Garrison Access . | . . . Data Cores Recovered . | . . . Used . | . . . Hacking Detections 8 | . 8 . Full Trace Events . | . . . Feedback Events . | . . . Feedback Blocked . | . . . Robot Schematics Acquired 1 | . 1 . Robots Built . | . . . Matter . | . . . Time . | . . . Total Robot Build Rating . | . . . Part Schematics Acquired . | . . . Parts Built . | . . . Matter . | . . . Time . | . . . Total Part Build Rating . | . . . Parts Repaired . | . . . Time . | . . . Parts Recycled . | . . . Recycled Matter . | . . . Retrieved Matter . | . . . Retrieved Components 4 | . 4 . Parts Scanalyzed . | . . . Part Schematics Acquired . | . . . Parts Damaged . | . . . Bothacking | -11 -10 -10 ------------ Run | Scr Mat Min Used RIF Installer . | . . . Robots Hacked . | . . . Non-combat . | . . . Combat . | . . . Robot Hacks Applied . | . . . Relay Couplers Released . | . . . Robots Rewired . | . . . Allies Hacked . | . . . Hacks Repelled . | . . . Allies | -11 -10 -10 -------- Run | Scr Mat Min Total Allies . | . . . Largest Group . | . . . Highest-Rated Group . | . . . Highest-Rated Ally . | . . . Total Orders . | . . . Ally Attacks . | . . . Total Damage . | . . . Kills . | . . . Allies Corrupted . | . . . Allies Melted . | . . . Intel | -11 -10 -10 ------- Run | Scr Mat Min Robot Analysis Total 2 | . 2 . Derelict Logs Recovered 2 | . . 2 Drone Launches . | . . . Drone Recoveries . | . . . Exploration | -11 -10 -10 ------------- Run | Scr Mat Min Turns Passed 1624 | 111 940 573 Spaces Moved 1061 | 59 629 373 Core 4 | 4 . . Treads 42 | . . 42 Legs 222 | 55 167 . Wheels 793 | . 462 331 Hover . | . . . Flight . | . . . Fastest Speed 50 | 50 100 100 Average Speed 118 | 115 118 117 Slowest Speed 220 | 120 180 220 Overloaded Moves . | . . . Propulsion Burnouts . | . . . Robots Hopped . | . . . Cave-ins Triggered . | . . . Exploration Rate (%) 56 | 6 86 78 Regions Visited 2 Branch Regions 1 Pre-discovered Areas 2 | . . 2 Known Exits Taken . | . . . Unknown Exits Taken 2 | 1 1 . Scrap Searched 1 | . . 1 Spaces Dug . | . . . Terrain Destroyed 11 | . . 11 Melee . | . . . Projectile . | . . . AOE 11 | . . 11 Actions | -11 -10 -10 --------- Run | Scr Mat Min Total 1255 | 77 735 443 Wait 42 | 2 21 19 Move 1059 | 58 628 373 Hop . | . . . Pick Up 22 | 1 15 6 Fast Attach 17 | 5 8 4 Attach 3 | . 2 1 Detach 5 | . 3 2 Swap 5 | . 3 2 Drop 10 | . 7 3 Fire 92 | 11 48 33 Melee . | . . . Ram . | . . . Kick . | . . . Crush . | . . . Escape Stasis . | . . . Rewire . | . . . Trap . | . . . Miscellaneous . | . . . Route ------- -11/Scrapyard -10/Materials (discovered 3 exits: [*Mat x2] / [*Min]) -10/Mines (discovered 2 exits: [*Mat x2]) History --------- Turn | Location | Event 20 | -11/Scrapyard | Discovered new exit (range 15) 112 | -11/Scrapyard | Entered Materials 313 | -10/Materials | Build established: Mutant 497 | -10/Materials | Lost 3 parts (2n1w) 586 | -10/Materials | Discovered new exit (range 16) 713 | -10/Materials | Discovered new exit (range 13) 874 | -10/Materials | Discovered new exit (range 16) 1052 | -10/Materials | Entered Mines 1066 | -10/Mines | Discovered new exit (range 4) 1073 | -10/Mines | Met a Derelict bent on vengeance 1119 | -10/Mines | Core integrity fell below 50% 1204 | -10/Mines | Discovered new exit (range 11) 1486 | -10/Mines | Learned location of Storage (-9) 1490 | -10/Mines | Core integrity fell below 20% 1593 | -10/Mines | Learned location of Zion (-6) 1625 | -10/Mines | Destroyed by S-10 Pest with Light Assault Rifle Last Messages --------------- 01515_ Acquired Weapon Shielding. 01517_ Acquired Lgt. Armor Plating. 01531_ Acquired Lgt. Treads. 01532_ Acquired 5 matter. 01537_ K-01 Serf collects debris. 01541_ Acquired Lgt. Treads. 01542_ K-01 Serf collects debris. 01543_ Dropped Wheel. 01543_ Dropped Com. Wheel. 01547_ K-01 Serf collects debris. 01547_ Acquired Imp. Ion Engine. 01556_ Acquired Hvy. Assault Rifle. 01560_ K-01 Serf collects debris. 01561_ Acquired Hvy. Assault Rifle. 01563_ K-01 Serf collects debris. 01563_ Acquired 25 matter. 01567_ K-01 Serf collects debris. 01593_ Acquired derelict log, extracted data. World map updated: -6/Zion. 01617_ S-10 Pest destroyed. Map ----- +----------------------------------------------------+ | ??????????#""" #?????????## # | | ??????????#""" #??????????# | | ??????????#""" #??????????## | | ??????????# #???????????## ## | | ??????????###### ##????????????## #### | | ????????######?# #??????????????### ##??## | | ???????##" "### #????????????????## ###????# | | ???????#!| !!##*#?????????????????# #?????## [ | | ???????# !!## ################### #????## | | ???????##% ###= #????# | | ???????###"+######### ################????# | | ???????# ! [ #?????# #???????????????????## # | | ????#### ==! ####??# #????????????????????#### | | ????# #### #???????????????????????? | | ????# #?????###???????????????? | | ????# #### ###### ##??????????????? | | ????# #??# ###????????????? | | ????# #??#k#### ##???????????? | | ????# #??# #??# #???????????? | | ????# #??# #?## #?########??? | | ????# #??# ### ##?# #### | | ????# #?## #??# < | | ????# #?# #??# = | | ????######### ##?# #?# """ #### | | ??????? s **# t ### """ #??? | | ??????????" " =%[ = @ ## [=""" #??? | | ??????????" " =%# ##### ## #??? | | ??????????" "??????# #???# #### #####??? | | ???????????????????# %#???## ####??# #??????? | | ???????????????????# #????#####?????# #??????? | | ???????????????????#% #??????????????# #??????? | | ???????????????????# #??????????????# ######?? | | ???????????????????# #??????????????# #?? | | ???????????????????# #????????????######## ### | | ??????????????????? ????????##### ##??# | | ??????????????????? ???????## #??#### | | ??????????????????? ???????# """ #?????# | | ??????????????????? #???????# """ ##????# | | ???????????????????###????????# """ ###??# | | ?????????????????????????????## #### | | ???????????????????????????### | | ??????????????????????????## | | ??????????????????????????# ### | | ??????????????????????????# #### | | ??????????????????????????## #### | | ???????????????????????????## #?# | | ????????????????????????????## #?# < | | ?????????????????????????????# ##?## # | | ????????????????????????????## #???# # | | ????????????????????????????# #???## | +----------------------------------------------------+ Best States ------------- Heat Dissipation 25 Energy Generation 14 Energy Capacity 265 Matter Stores 300 Matter Capacity 300 Sight Range 16 Terrain Scan Density 10 Evasion (%) 40 Targeting Accuracy 5 Recoil Reduction 2 Item Schematics ----------------- None Robot Schematics ------------------ M-13 Machinist | -10/Materials | Hacked Fabricated ------------ Nothing Alien Tech Used ----------------- None Achievements -------------- None Challenges ------------ None Game ------ Seed TargetHugeTearclaws Manual? 0 Play Time 00:14:41 Cumulative 849.2 hours Start 2020.01.01 @ 18:34:15 End 2020.01.01 @ 18:45:58 Sessions 1 Manual Loads 0 Difficulty Rogue Special Mode None Game No. 314 Rogue 314 Adventurer 0 Explorer 0 Win Type - Total 12 Types 11/0/1/0/0/0/0 Lore% 77 Gallery% 87 Achievement% 69 Wizard Run 0 Options --------- ASCII 0 Keyboard 1 Movement Numpad Keybinds 0 Fullscreen 2 Font 18/SmallcapsGlow Map View 112x50 Tactical HUD 1 Map Filters NONE Filters NONE Steam 1 RUN: 4049d3b2-a2ad-4401-9c8e-9058294162ad